bitfinex-derivatives/quotes_SOLF0:USTF0_20241021
["timestamp","ask_amount","ask_price","bid_price","bid_amount"]
[1729516281882,7.62563953,165.69,165.58,1.3609]
[1729516282582,3.0192,165.68,165.65,3.0196]
[1729516283189,3.0187,165.71,165.68,3.019]
[1729516283391,4.54,165.71,165.68,3.019]
[1729516283590,4.54,165.71,165.6,4.54]
[1729516283990,3.0189,165.7,165.6,4.54]
[1729516284390,4.54,165.71,165.6,4.54]
[1729516284591,3.0192,165.68,165.6,4.54]
[1729516285393,3.0191,165.69,165.66,3.0195]
[1729516288580,3.0191,165.69,165.67,3.0193]
[1729516289989,6.00202777,165.72,165.69,3.0189]
[1729516290195,4.54,165.71,165.69,3.0189]
[1729516291391,3.9352,165.78,165.64,4.54]
[1729516291592,3.9352,165.78,165.65,3.9273]
[1729516291593,4.54,165.77,165.65,3.9273]
[1729516292192,3.0181,165.74,165.72,3.0184]
[1729516293297,4.54,165.77,165.65,3.9273]
[1729516293490,22.7,165.77,165.65,3.9273]
[1729516293892,3.0188,165.7,165.68,3.0191]
[1729516294091,6.10000402,165.7,165.65,3.9273]
[1729516294294,3.0188,165.7,165.65,3.9273]
[1729516294498,3.0188,165.7,165.67,3.0192]
[1729516294797,6.02990799,165.7,165.65,3.9273]
[1729516296492,6.02990799,165.7,165.68,3.0192]
[1729516300603,3.01110799,165.7,165.68,3.0192]
[1729516301503,4.54,165.72,165.7,3.0187]
[1729516301706,7.52155647,165.72,165.7,3.0187]
[1729516303105,7.52155647,165.72,165.65,3.9273]
[1729516304007,7.52155647,165.72,165.65,2.5614]
[1729516304203,7.52155647,165.72,165.62,4.54]
[1729516304507,3.0191,165.69,165.66,3.0194]
[1729516304905,7.52155647,165.72,165.62,4.54]
[1729516305104,1.2456,165.71,165.63,3.02]
[1729516305302,2.5981,165.71,165.56,9.8879]
[1729516305498,2.5981,165.71,165.57,4.54]
[1729516305705,3.0195,165.67,165.63,3.0199]
[1729516305900,3.0195,165.67,165.57,4.54]
[1729516306606,3.0195,165.67,165.64,3.0198]
[1729516310608,3.02,165.64,165.61,3.0203]
[1729516311203,4.54,165.63,165.57,3.0211]
[1729516311404,4.54,165.63,165.56,3.8454]
[1729516312008,7.528322,165.63,165.56,3.8454]
[1729516312403,10.548522,165.63,165.59,3.0207]
[1729516313009,7.5596,165.66,165.6,3.0205]
[1729516313306,7.5596,165.66,165.56,3.8454]
[1729516313509,4.54,165.66,165.56,3.8454]
[1729516313715,3.0203,165.62,165.58,3.0209]
[1729516313905,6.07089724,165.62,165.56,3.8454]
[1729516314105,3.0203,165.62,165.56,3.8454]
[1729516314711,6.09750041,165.62,165.56,3.8454]
[1729516315920,6.09750041,165.62,165.59,3.0208]
[1729516317612,3.07720041,165.62,165.56,3.8454]
[1729516317816,3.0198,165.65,165.61,3.0203]
[1729516318724,7.5598,165.65,165.62,3.0202]
[1729516320023,3.0199,165.64,165.61,3.0204]
[1729516320224,3.07048078,165.63,165.56,3.8454]
[1729516320720,3.07048078,165.63,165.61,3.0204]
[1729516321921,3.0199,165.64,165.61,3.0204]
[1729516322119,127.26438405,165.67,165.58,4.54]
[1729516322721,127.26438405,165.67,165.66,3.0195]
[1729516323022,4.54,165.71,165.62,4.54]
[1729516323328,4.54,165.71,165.67,3.0192]
[1729516323725,7.54319279,165.71,165.67,3.0192]
[1729516323919,3.0189,165.7,165.67,3.0192]
[1729516325119,4.54,165.7,165.6,4.54]
[1729516325320,4.54,165.7,165.59,4.54]
[1729516325525,3.0193,165.68,165.62,3.0202]
[1729516325727,3.0193,165.68,165.59,4.54]
[1729516326431,4.54,165.7,165.65,3.0196]
[1729516326729,3.0192,165.68,165.65,3.0196]
[1729516330024,3.0192,165.68,165.66,3.0195]
[1729516330224,3.0192,165.68,165.59,4.54]
[1729516331421,3.0192,165.68,165.64,3.0197]
[1729516332128,4.76,165.7,165.64,3.0197]
[1729516332927,4.76,165.7,165.59,4.54]
[1729516333128,3.0193,165.68,165.65,3.0197]
[1729516336030,4.76,165.7,165.59,4.54]
[1729516336626,4.76,165.7,165.65,3.0196]
[1729516337034,3.0193,165.68,165.65,3.0196]
[1729516337534,3.00319279,165.71,165.68,3.0191]
[1729516337831,4.76,165.71,165.68,3.0191]
[1729516338034,2.95792508,165.7,165.68,3.0191]
[1729516338230,2.95792508,165.7,165.59,4.54]
[1729516338428,2.95792508,165.7,165.67,3.0194]
[1729516338929,4.76,165.71,165.67,3.0194]
[1729516339332,3.0189,165.7,165.67,3.0194]
[1729516341439,7.71254771,165.71,165.59,4.54]
[1729516341646,2.95254771,165.71,165.69,3.0189]
[1729516341841,4.76,165.72,165.63,4.76]
[1729516342039,4.76,165.72,165.64,1.285]
[1729516342339,10.74089624,165.72,165.69,3.0189]
[1729516342644,2.96239624,165.72,165.64,1.285]
[1729516342935,2.97292464,165.81,165.71,3.0186]
[1729516342936,7.7781,165.75,165.71,3.0186]
[1729516343240,4.76,165.75,165.71,3.0186]
[1729516343439,3.0181,165.74,165.71,3.0186]
[1729516343941,4.76,165.75,165.64,1.285]
[1729516344536,3.0184,165.73,165.69,3.0188]
[1729516344734,4.76,165.75,165.69,3.0188]
[1729516344735,3.05473028,165.72,165.69,3.0188]
[1729516345040,4.76,165.75,165.69,3.0188]
[1729516345441,3.0194,165.68,165.65,3.0197]
[1729516345634,2.98192668,165.68,165.61,2.5742]
[1729516346138,3.0194,165.67,165.64,3.0198]
[1729516346529,2.98192668,165.68,165.61,2.5742]
[1729516347133,6.00122668,165.68,165.61,2.5742]
[1729516347637,6.00122668,165.68,165.64,3.0197]
[1729516347940,2.98192668,165.68,165.61,1.2352]
[1729516348130,3.0197,165.66,165.63,3.02]
[1729516348331,6.09548274,165.66,165.61,1.2352]
[1729516348641,3.0198,165.65,165.62,3.0202]
[1729516349936,3.0198,165.65,165.59,3.0208]
[1729516349937,3.0203,165.62,165.59,3.0208]
[1729516350629,4.76,165.65,165.59,3.0208]
[1729516350836,3.0201,165.63,165.59,3.0208]
[1729516353239,4.76,165.65,165.59,3.0208]
[1729516353442,3.0203,165.62,165.59,3.0208]
[1729516353639,4.76,165.61,165.44,3.09034865]
[1729516353833,3.0208,165.59,165.51,1.3208]
[1729516354040,3.0208,165.59,165.52,1.3468]
[1729516354341,3.0208,165.59,165.55,3.0214]
[1729516354944,3.0208,165.59,165.56,3.0213]
[1729516356040,4.76,165.61,165.52,1.3468]
[1729516356346,4.76,165.61,165.51,1.3208]
[1729516356555,3.0216,165.55,165.52,3.0221]
[1729516357034,2.99049697,165.57,165.52,3.0221]
[1729516357231,3.0214,165.56,165.52,3.0221]
[1729516357548,3.0214,165.56,165.53,3.0219]
[1729516362338,10.83054238,165.57,165.53,3.0219]
[1729516362543,10.83054238,165.57,165.54,3.0217]
[1729516367149,7.80924238,165.57,165.49,1.2956]
[1729516367346,3.0215,165.56,165.49,1.2956]
[1729516367950,3.0215,165.56,165.52,3.0219]
[1729516369247,3.0215,165.56,165.49,1.2956]
[1729516369449,3.0215,165.56,165.53,3.0219]
[1729516369655,7.80924238,165.57,165.49,1.2956]
[1729516370051,7.80924238,165.57,165.54,3.0216]
[1729516370453,6.03054238,165.57,165.54,3.0216]
[1729516370757,3.0213,165.57,165.54,3.0216]
[1729516371157,6.0701001,165.57,165.54,3.0216]
[1729516371558,3.0488001,165.57,165.55,3.0214]
[1729516371752,3.0488001,165.57,165.49,1.2956]
[1729516372856,3.0488001,165.57,165.55,3.0214]
[1729516373353,3.0211,165.58,165.55,3.0214]
[1729516374059,3.05999002,165.57,165.55,3.0214]
[1729516378658,3.05999002,165.57,165.49,1.2956]
[1729516379260,3.05999002,165.57,165.55,3.0214]
[1729516384552,3.0214,165.56,165.54,3.0216]
[1729516385562,3.04952061,165.57,165.54,3.0216]
[1729516385757,3.0213,165.57,165.54,3.0216]
[1729516385964,5.9961323,165.57,165.54,3.0216]
[1729516386569,5.9960323,165.57,165.55,3.0214]
[1729516389267,3.0215,165.56,165.53,3.0218]
[1729516389854,3.0217,165.55,165.52,3.022]
[1729516390055,2.9748323,165.57,165.52,3.022]
[1729516390365,4.8,165.59,165.52,3.022]
[1729516390660,4.8,165.59,165.51,3.0222]
[1729516390866,2.6311,165.58,165.51,3.0222]
[1729516391066,3.0219,165.54,165.51,3.0222]
[1729516391270,2.95734933,165.53,165.51,3.0222]
[1729516391860,5.97924933,165.53,165.51,3.0222]
[1729516392866,3.0221,165.52,165.5,3.0224]
[1729516393069,3.0221,165.52,165.47,1.292]
[1729516394971,3.0221,165.52,165.49,3.0225]
[1729516395369,3.0222,165.52,165.49,3.0225]
[1729516395572,2.95734933,165.53,165.48,3.0227]
[1729516395771,4.7,165.54,165.48,3.0227]
[1729516395963,4.7,165.54,165.47,1.292]
[1729516396168,4.7,165.54,165.49,3.0226]
[1729516396465,7.75588716,165.54,165.49,3.0226]
[1729516396870,3.022,165.53,165.49,3.0226]
[1729516397071,7.75588716,165.54,165.49,3.0226]
[1729516397471,3.0222,165.52,165.49,3.0226]
[1729516397875,7.75588716,165.54,165.46,1.3159]
[1729516398064,3.0222,165.52,165.49,3.0226]
[1729516400176,7.75588716,165.54,165.43,6.0617]
[1729516400365,7.75588716,165.54,165.43,1.3617]
[1729516400569,3.0229,165.48,165.45,3.0232]
[1729516400877,4.7,165.49,165.43,1.3617]
[1729516401070,7.7227,165.49,165.47,3.023]
[1729516401277,7.7227,165.49,165.43,1.3617]
[1729516401278,4.7,165.49,165.43,1.3617]
[1729516401669,4.7,165.49,165.47,3.0229]
[1729516402174,4.7,165.49,165.43,1.3617]
[1729516402377,7.7228,165.49,165.45,3.0232]
[1729516402578,4.7,165.49,165.45,3.0232]
[1729516402875,3.023,165.48,165.45,3.0232]
[1729516403070,4.7,165.49,165.45,3.0232]
[1729516403673,3.0229,165.48,165.45,3.0232]
[1729516404769,128.71316073,165.53,165.43,1.3617]
[1729516405175,4.7,165.52,165.43,1.3617]
[1729516405374,3.0226,165.5,165.43,1.3617]
[1729516406076,4.7,165.52,165.46,3.023]
[1729516406274,3.0228,165.49,165.46,3.023]
[1729516408476,3.0224,165.51,165.46,3.023]
[1729516408680,4.7,165.52,165.46,3.023]
[1729516409379,3.0228,165.49,165.46,3.023]
[1729516411380,3.0226,165.5,165.45,3.0232]
[1729516411584,4.7,165.52,165.45,3.0232]
[1729516411876,4.7,165.52,165.43,1.3617]
[1729516412078,3.0228,165.49,165.46,3.0231]
[1729516412284,4.7,165.48,165.42,1.3339]
[1729516412879,4.7,165.48,165.43,3.0236]
[1729516413083,4.7,165.48,165.42,1.3339]
[1729516413283,128.71316073,165.53,165.42,1.3339]
[1729516413580,3.0224,165.51,165.47,3.0229]
[1729516413780,4.7,165.52,165.47,3.0229]
[1729516413977,3.0224,165.51,165.47,3.0228]
[1729516414478,4.7,165.52,165.47,3.0228]
[1729516414782,3.0225,165.5,165.47,3.0228]
[1729516414986,3.0225,165.5,165.48,3.0228]
[1729516415983,4.7,165.52,165.42,1.3339]
[1729516416183,4.7,165.52,165.48,3.0227]
[1729516416485,4.7,165.51,165.48,3.0227]
[1729516416786,7.7224,165.51,165.48,3.0227]
[1729516417087,3.0225,165.5,165.48,3.0227]
[1729516421182,3.0231,165.47,165.45,3.0233]
[1729516421488,3.0231,165.47,165.38,1.259]
[1729516421489,4.66,165.47,165.38,2.5957]
[1729516422376,7.6831,165.47,165.44,3.0234]
[1729516423584,4.66,165.47,165.45,3.0233]
[1729516424977,7.683,165.47,165.45,3.0233]
[1729516425181,7.683,165.47,165.44,3.0235]
[1729516426581,4.66,165.47,165.44,3.0235]
[1729516426881,4.66,165.47,165.38,2.5957]
[1729516427788,3.0238,165.43,165.4,3.0242]
[1729516428688,7.6838,165.43,165.4,3.0242]
[1729516429190,10.66647289,165.43,165.4,3.0242]
[1729516429786,7.64267289,165.43,165.34,5.9852]
[1729516429989,3.024,165.42,165.39,3.0244]
[1729516430186,7.64267289,165.43,165.34,1.3252]
[1729516430386,3.0241,165.41,165.38,3.0245]
[1729516430586,7.64267289,165.43,165.34,1.3252]
[1729516431691,3.0242,165.41,165.38,3.0245]
[1729516431897,7.64267289,165.43,165.34,1.3252]
[1729516432086,7.64267289,165.43,165.31,6.0518]
[1729516432295,3.0243,165.4,165.37,3.0248]
[1729516432597,4.66,165.39,165.37,3.0248]
[1729516434289,4.66,165.39,165.38,3.0245]
[1729516434998,7.70472363,165.39,165.38,3.0245]
[1729516435195,7.70472363,165.39,165.37,3.0247]
[1729516435596,7.70472363,165.39,165.27,3.07892721]
[1729516435597,7.70472363,165.39,165.26,6.0536]
[1729516435793,3.0247,165.38,165.34,3.0253]
[1729516436097,3.04472363,165.39,165.29,1.2401]
[1729516436299,4.66,165.38,165.31,3.0258]
[1729516436501,4.66,165.38,165.29,1.2401]
[1729516437091,4.66,165.38,165.36,3.0249]
[1729516441000,4.66,165.39,165.36,3.0249]
[1729516441205,6.00834205,165.4,165.29,1.2401]
[1729516441399,4.66,165.39,165.38,3.0245]
[1729516441608,3.9361,165.45,165.3,9.15084644]
[1729516441802,4.66,165.44,165.3,9.15084644]
[1729516442008,3.0241,165.42,165.38,3.0246]
[1729516442512,4.66,165.41,165.38,3.0246]
[1729516443512,7.6841,165.41,165.38,3.0246]
[1729516444010,4.66,165.41,165.38,3.0246]
[1729516444415,4.66,165.41,165.36,3.0249]
[1729516445117,4.66,165.41,165.37,3.0248]
[1729516445414,4.66,165.41,165.3,6.0521]
[1729516446011,3.0245,165.39,165.36,3.0249]
[1729516446308,3.0245,165.39,165.29,1.2401]
[1729516446309,22.81,165.41,165.29,1.2401]
[1729516446514,22.81,165.41,165.32,3.0256]
[1729516446515,3.0248,165.38,165.32,3.0256]
[1729516446707,4.66,165.37,165.32,3.0256]
[1729516447311,3.0252,165.35,165.32,3.0256]
[1729516448116,5.99806965,165.35,165.32,3.0256]
[1729516452717,5.99806965,165.35,165.3,3.026]
[1729516452918,5.99806965,165.35,165.29,1.2401]
[1729516453411,5.99806965,165.35,165.32,3.0256]
[1729516456217,2.97286965,165.35,165.27,1.2778]
[1729516456526,4.56,165.34,165.28,1.3387]
[1729516456722,7.6060121,165.34,165.28,1.3387]
[1729516456917,7.6060121,165.34,165.32,3.0256]
[1729516458921,10.6315121,165.34,165.31,3.0258]
[1729516460520,3.0256,165.33,165.3,3.026]
[1729516460720,7.6060121,165.34,165.3,3.026]
[1729516461627,3.0257,165.33,165.3,3.026]
[1729516465819,3.0256,165.33,165.3,3.026]
[1729516466324,7.6060121,165.34,165.22,8.5052]
[1729516466525,3.0258,165.32,165.27,3.0266]
[1729516468127,7.6060121,165.34,165.25,3.027]
[1729516469329,7.6060121,165.34,165.22,3.9452]
[1729516469527,3.9939,165.33,165.22,3.9452]
[1729516469826,3.0265,165.28,165.23,3.0273]
[1729516470137,4.56,165.27,165.23,3.0273]
[1729516470325,4.56,165.27,165.24,3.0272]
[1729516470728,4.56,165.27,165.22,3.9452]
[1729516471028,4.56,165.27,165.23,3.0273]
[1729516471626,7.5867,165.27,165.23,3.0273]
[1729516473627,4.56,165.27,165.22,3.9452]
[1729516474925,4.56,165.27,165.24,3.0271]
[1729516477236,7.5867,165.27,165.24,3.0271]
[1729516478537,4.56,165.27,165.22,3.9452]
[1729516478934,4.56,165.27,165.19,4.56]
[1729516479134,7.5867,165.27,165.23,3.0272]
[1729516479736,7.5867,165.27,165.19,4.56]
[1729516479737,7.5867,165.27,165.24,3.0272]
[1729516481136,4.56,165.27,165.19,4.56]
[1729516481337,4.56,165.27,165.23,3.0273]
[1729516482036,7.5867,165.27,165.23,3.0273]
[1729516484330,3.0269,165.26,165.22,3.0275]
[1729516484937,3.10474927,165.25,165.17,8.4348]
[1729516485142,6.05469409,165.25,165.21,3.0277]
[1729516487340,6.05469409,165.25,165.22,3.0275]
[1729516487732,3.0272,165.24,165.17,3.8748]
[1729516487936,4.56,165.27,165.21,3.0277]
[1729516488342,3.0273,165.24,165.17,3.8748]
[1729516488638,6.02407351,165.24,165.17,3.8748]
[1729516488843,6.02407351,165.24,165.2,3.0278]
[1729516490544,2.99677351,165.24,165.21,3.0277]
[1729516490742,3.0271,165.25,165.21,3.0277]
[1729516490937,5.9956361,165.25,165.21,3.0277]
[1729516491342,3.0272,165.24,165.21,3.0277]
[1729516491743,4.56,165.23,165.21,3.0277]
[1729516492044,7.55671553,165.23,165.21,3.0277]
[1729516492543,7.55671553,165.23,165.17,3.8748]
[1729516493147,7.55671553,165.23,165.21,3.0277]
[1729516493842,7.55671553,165.23,165.17,3.8748]
[1729516494143,7.55671553,165.23,165.21,3.0277]
[1729516494541,4.56,165.24,165.22,3.0274]
[1729516495145,7.5259324,165.24,165.22,3.0274]
[1729516495345,2.9659324,165.24,165.22,3.0274]
[1729516495541,4.56,165.25,165.22,3.0274]
[1729516495741,7.61743424,165.25,165.17,3.8748]
[1729516496551,7.61743424,165.25,165.23,3.0273]
[1729516496849,3.05743424,165.25,165.23,3.0273]
[1729516497048,7.5869,165.26,165.23,3.0273]
[1729516499549,3.0882677,165.25,165.23,3.0273]
[1729516499850,7.5869,165.26,165.23,3.0273]
[1729516501351,4.56,165.26,165.17,3.8748]
[1729516502150,3.0271,165.25,165.22,3.0275]
[1729516502356,2.99283859,165.25,165.17,3.8748]
[1729516502657,3.0273,165.24,165.21,3.0277]
[1729516502948,3.02131585,165.23,165.21,3.0277]
[1729516504558,3.0273,165.24,165.21,3.0277]
[1729516504757,3.0275,165.23,165.17,3.8748]
[1729516504957,5.98313086,165.23,165.17,3.8748]
[1729516505351,3.0277,165.22,165.17,3.8748]
[1729516505548,4.56,165.22,165.17,3.8748]
[1729516508053,7.5876,165.22,165.17,3.8748]
[1729516509055,4.56,165.22,165.2,3.0278]
[1729516510055,4.56,165.22,165.17,3.8748]
[1729516510245,4.56,165.22,165.19,3.028]
[1729516510753,2.95563086,165.23,165.17,3.8748]
[1729516510954,24.2018,165.32,165.17,3.8748]
[1729516511155,3.0269,165.26,165.21,3.0277]
[1729516511357,2.95671144,165.25,165.17,3.8748]
[1729516511762,5.98391144,165.25,165.21,3.0276]
[1729516512254,5.98391144,165.25,165.17,3.8748]
[1729516512255,2.95671144,165.25,165.17,3.8748]
[1729516512450,2.95671144,165.25,165.22,3.0275]
[1729516513864,5.98381144,165.25,165.22,3.0275]
[1729516514165,18.15,165.32,165.23,3.0273]
[1729516514364,3.0264,165.29,165.18,10.6166]
[1729516514665,4.56,165.28,165.25,3.0269]
[1729516515064,196.91284124,165.33,165.18,10.6166]
[1729516515065,3.026,165.31,165.18,10.6166]
[1729516515260,4.56,165.3,165.27,3.0265]
[1729516516867,3.0261,165.3,165.27,3.0267]
[1729516517062,128.78274124,165.33,165.27,3.0267]
[1729516517262,4.56,165.32,165.23,3.9294]
[1729516517467,3.0266,165.28,165.25,3.027]
[1729516517668,4.56,165.32,165.23,3.9294]
[1729516518870,3.0263,165.29,165.26,3.0268]
[1729516519274,4.56,165.32,165.23,3.9294]
[1729516519470,3.0261,165.3,165.27,3.0266]
[1729516520972,4.56,165.32,165.26,3.0268]
[1729516521176,4.56,165.32,165.23,3.9294]
[1729516521376,22.71,165.32,165.16,12.72968944]
[1729516521578,2.5384,165.31,165.22,3.0274]
[1729516521779,3.0269,165.26,165.22,3.0274]
[1729516522076,3.08055858,165.25,165.17,3.8742]
[1729516522478,6.10765858,165.25,165.17,3.8742]
[1729516522671,3.08055858,165.25,165.2,3.0278]
[1729516522869,3.0273,165.24,165.17,3.8742]
[1729516523276,3.0273,165.24,165.19,3.0281]
[1729516523570,3.0273,165.24,165.17,3.8742]
[1729516523972,3.0273,165.24,165.2,3.0278]
[1729516524777,3.0273,165.24,165.21,3.0277]
[1729516525170,3.08055858,165.25,165.17,3.8742]
[1729516525475,6.10765858,165.25,165.17,3.8742]
[1729516525776,3.0272,165.24,165.2,3.0279]
[1729516525976,6.07384518,165.24,165.2,3.0279]
[1729516526176,3.0272,165.24,165.2,3.0279]
[1729516526777,6.09717371,165.24,165.2,3.0279]
[1729516527676,3.06997371,165.24,165.17,3.8742]
[1729516527876,4.56,165.26,165.18,3.0283]
[1729516528272,3.0278,165.21,165.17,3.0284]
[1729516528476,1.2989,165.27,165.16,6.06456516]
[1729516528477,4.56,165.2,165.16,6.06456516]
[1729516528677,4.56,165.19,165.16,6.06456516]
[1729516528871,3.09118146,165.18,165.16,9.09326516]
[1729516529071,4.56,165.2,165.16,9.09326516]
[1729516529367,7.57677632,165.2,165.16,9.09316516]
[1729516529778,7.57677632,165.2,165.16,6.06456516]
[1729516529968,7.57677632,165.2,165.16,9.09306516]
[1729516530174,7.57677632,165.2,165.16,6.06456516]
[1729516530775,3.01677632,165.2,165.16,6.06456516]
[1729516530974,4.56,165.19,165.16,6.06456516]
[1729516531278,4.56,165.19,165.16,9.09316516]
[1729516531778,3.06405076,165.2,165.16,9.09316516]
[1729516532169,6.09205076,165.2,165.16,9.09316516]
[1729516532373,4.56,165.21,165.16,6.06456516]
[1729516532675,3.0282,165.19,165.16,6.06456516]
[1729516533279,3.028,165.2,165.17,3.0285]
[1729516534378,7.66041572,165.21,165.16,9.09316516]
[1729516534578,3.0282,165.19,165.16,9.09316516]
[1729516535280,3.0282,165.19,165.16,6.06456516]
[1729516535783,3.0282,165.19,165.16,9.09326516]
[1729516536477,7.66041572,165.21,165.16,6.06456516]
[1729516537181,10.68831572,165.21,165.17,3.0284]
[1729516537576,7.66041572,165.21,165.17,3.0284]
[1729516538181,3.028,165.2,165.17,3.0284]
[1729516538380,3.10041572,165.21,165.18,3.0283]
[1729516538582,4.56,165.21,165.18,3.0283]
[1729516538777,10.64498081,165.21,165.18,3.0283]
[1729516539485,3.028,165.2,165.18,3.0283]
[1729516539879,3.028,165.2,165.17,3.0284]
[1729516541585,1.2989,165.27,165.16,6.06456516]
[1729516541586,3.0276,165.22,165.19,3.028]
[1729516541974,3.01235124,165.22,165.16,6.06456516]
[1729516542473,3.0278,165.21,165.18,3.0283]
[1729516544380,3.0278,165.21,165.16,6.06456516]
[1729516544585,3.0281,165.2,165.16,6.06456516]
[1729516545387,4.56,165.22,165.16,6.06456516]
[1729516545586,4.56,165.22,165.17,3.0284]
[1729516546088,3.0278,165.21,165.18,3.0283]
[1729516546783,3.0281,165.19,165.16,6.06456516]
[1729516548384,4.56,165.22,165.16,6.06456516]
[1729516548585,3.0282,165.19,165.16,9.09326516]
[1729516551793,3.00901799,165.23,165.16,9.09326516]
[1729516551794,3.00901799,165.23,165.16,6.06456516]
[1729516551986,2.5923,165.27,165.16,6.06456516]
[1729516551987,3.028,165.2,165.17,3.0285]
[1729516552187,7.59708009,165.21,165.16,6.06456516]
[1729516553090,4.56,165.22,165.16,6.06456516]
[1729516553290,7.53132012,165.22,165.16,6.06456516]
[1729516554893,3.0279,165.21,165.18,3.0282]
[1729516557388,7.53132012,165.22,165.18,3.0282]
[1729516557592,10.55892012,165.22,165.18,3.0282]
[1729516558995,3.028,165.2,165.17,3.0285]
[1729516559196,7.53132012,165.22,165.16,6.06456516]
[1729516560193,7.53132012,165.22,165.18,3.0281]
[1729516560398,7.53132012,165.22,165.16,6.06456516]
[1729516561995,2.97132012,165.22,165.16,6.06456516]
[1729516562194,1.2989,165.27,165.17,2.5565]
[1729516562390,4.56,165.25,165.17,3.9208]
[1729516562694,3.01750263,165.24,165.21,3.0277]
[1729516563098,4.56,165.25,165.17,3.9208]
[1729516563298,3.0272,165.24,165.19,3.028]
[1729516563496,6.0943984,165.24,165.19,3.028]
[1729516563697,3.0272,165.24,165.19,3.028]
[1729516563905,3.0274,165.23,165.19,3.028]
[1729516564103,3.01265426,165.23,165.19,3.028]
[1729516564297,4.56,165.25,165.19,3.028]
[1729516564697,3.0273,165.24,165.19,3.028]
[1729516564897,7.57265235,165.25,165.19,3.028]
[1729516565399,3.0275,165.23,165.19,3.028]
[1729516566602,3.0275,165.23,165.18,3.0282]
[1729516566805,3.0275,165.23,165.17,3.9208]
[1729516567405,7.57265235,165.25,165.17,3.9208]
[1729516567601,3.0274,165.23,165.17,3.9208]
[1729516567798,3.0274,165.23,165.2,3.0278]
[1729516568003,7.57265235,165.25,165.17,3.9208]
[1729516568509,7.57265235,165.25,165.2,3.0278]
[1729516568810,3.0275,165.23,165.2,3.0278]
[1729516568998,7.57265235,165.25,165.2,3.0278]
[1729516569197,3.0277,165.22,165.2,3.0278]
[1729516569406,4.56,165.21,165.19,3.0281]
[1729516569606,4.56,165.21,165.16,6.06456516]
[1729516570205,7.5878,165.21,165.16,6.06456516]
[1729516570706,7.5878,165.21,165.18,3.0282]
[1729516572512,3.028,165.2,165.17,3.0284]
[1729516577111,4.56,165.21,165.16,6.06456516]
[1729516577416,4.56,165.21,165.19,3.028]
[1729516577620,4.56,165.21,165.16,6.06456516]
[1729516577816,7.5879,165.21,165.18,3.0282]
[1729516579914,3.028,165.2,165.18,3.0282]
[1729516580621,3.01265235,165.25,165.19,3.028]
[1729516580817,4.56,165.24,165.16,6.06456516]
[1729516581015,7.52059,165.24,165.19,3.028]
[1729516581520,3.0278,165.22,165.19,3.028]
[1729516583018,3.0278,165.22,165.16,6.06456516]
[1729516583019,3.0279,165.21,165.18,3.0282]
[1729516583520,3.0279,165.21,165.16,6.06456516]
[1729516583722,3.0279,165.21,165.19,3.028]
[1729516584019,6.0014643,165.21,165.19,3.028]
[1729516584821,6.0014643,165.21,165.18,3.0282]
[1729516585319,3.0281,165.19,165.16,9.09306516]
[1729516585618,2.9735643,165.21,165.16,6.06456516]
[1729516585818,4.56,165.23,165.16,6.06456516]
[1729516586019,3.0279,165.21,165.18,3.0283]
[1729516586221,6.06782633,165.21,165.18,3.0283]
[1729516588415,3.03992633,165.21,165.18,3.0283]
[1729516588621,3.0281,165.19,165.17,3.0284]
[1729516589216,3.05059872,165.2,165.17,3.0284]
[1729516589429,3.028,165.2,165.18,3.0283]
[1729516589621,6.03617037,165.2,165.18,3.0283]